bitfinex/quotes_BTCUSD_20220202
["timestamp","ask_amount","ask_price","bid_price","bid_amount"]
[1643785753708,0.88866071,38269.0,38268.0,12.52773296]
[1643785753908,0.44458169,38269.0,38268.0,12.52773296]
[1643785754108,0.20812098,38269.0,38268.0,12.52773296]
[1643785756312,0.05812098,38269.0,38268.0,12.52773296]
[1643785756510,0.20812098,38269.0,38268.0,12.52773296]
[1643785758756,0.05812098,38269.0,38268.0,12.52773296]
[1643785758954,0.00592098,38269.0,38268.0,12.52773296]
[1643785759257,0.43811879,38271.0,38270.0,0.55]
[1643785759258,0.16255187,38271.0,38270.0,0.55]
[1643785759661,0.16255187,38271.0,38268.0,12.52773296]
[1643785759854,0.22789087,38271.0,38268.0,12.52773296]
[1643785760254,0.22789087,38271.0,38270.0,0.45962875]
[1643785760455,0.22789087,38271.0,38270.0,0.38308168]
[1643785762500,0.22789087,38271.0,38270.0,0.62477208]
[1643785762701,0.06658011,38272.0,38270.0,0.62477208]
[1643785763000,0.06658011,38272.0,38271.0,0.85563384]
[1643785763001,0.065338,38272.0,38271.0,0.85563384]
[1643785763200,0.065338,38272.0,38271.0,1.20744584]
[1643785763901,0.065338,38272.0,38271.0,0.60744584]
[1643785764105,0.065338,38272.0,38271.0,0.2440778]
[1643785765345,0.13067,38272.0,38271.0,0.2440778]
[1643785768248,0.13067,38272.0,38270.0,0.38308168]
[1643785768450,0.130662,38271.0,38268.0,12.52773296]
[1643785768706,0.195994,38271.0,38268.0,12.52773296]
[1643785769909,0.195994,38271.0,38269.0,0.10177291]
[1643785771111,0.195994,38271.0,38268.0,12.52773296]
[1643785771314,0.05,38270.0,38268.0,12.52773296]
[1643785771514,0.0522,38269.0,38268.0,12.52773296]
[1643785772010,0.27341542,38269.0,38268.0,12.52773296]
[1643785772210,0.27341542,38269.0,38268.0,11.79137801]
[1643785773352,0.49971062,38269.0,38268.0,11.79137801]
[1643785773951,0.2784952,38269.0,38268.0,11.79137801]
[1643785774353,0.0522,38269.0,38268.0,11.79137801]
[1643785776800,0.115341,38270.0,38268.0,11.79137801]
[1643785778302,0.18068623,38270.0,38268.0,11.79137801]
[1643785778703,0.115341,38270.0,38268.0,11.79137801]
[1643785778902,0.11185403,38270.0,38268.0,11.79137801]
[1643785780253,0.17719872,38270.0,38268.0,11.79137801]
[1643785781052,0.22195831,38269.0,38268.0,11.79137801]
[1643785782253,0.11185403,38270.0,38268.0,11.79137801]
[1643785782452,0.04651303,38270.0,38268.0,11.79137801]
[1643785782652,0.23225155,38271.0,38268.0,11.79137801]
[1643785783256,0.23225155,38271.0,38268.0,12.0618084]
[1643785784099,0.05,38270.0,38268.0,12.0618084]
[1643785788161,0.11533,38270.0,38268.0,12.30870137]
[1643785788960,0.17667898,38276.0,38269.0,0.82652974]
[1643785789167,0.261326,38278.0,38269.0,0.89176974]
[1643785789168,0.17667898,38278.0,38269.0,0.89176974]
[1643785789358,0.377115,38281.0,38269.0,0.89176974]
[1643785789360,0.55379398,38281.0,38269.0,0.89176974]
[1643785789560,0.065323,38275.0,38269.0,0.89176974]
[1643785789757,0.065323,38275.0,38270.0,0.351812]
[1643785789958,0.195956,38276.0,38275.0,0.31650346]
[1643785790158,0.195956,38276.0,38275.0,0.58797983]
[1643785793701,0.245956,38276.0,38275.0,0.58797983]
[1643785794303,0.245956,38276.0,38275.0,0.27147637]
[1643785794304,0.235956,38276.0,38275.0,0.27147637]
[1643785794705,0.185956,38276.0,38275.0,0.27147637]
[1643785795750,0.235956,38276.0,38275.0,0.27147637]
[1643785796756,0.185956,38276.0,38275.0,0.27147637]
[1643785798256,0.235956,38276.0,38273.0,0.34340303]
[1643785799303,0.23719961,38276.0,38273.0,0.34340303]
[1643785799803,0.23719961,38276.0,38273.0,0.56750178]
[1643785800202,0.235956,38276.0,38273.0,0.56750178]
[1643785800604,0.23719961,38276.0,38273.0,0.56750178]
[1643785801107,0.23719961,38276.0,38273.0,0.22409875]
[1643785801506,0.235956,38276.0,38273.0,0.22409875]
[1643785801705,0.23719961,38276.0,38273.0,0.22409875]
[1643785802106,0.23719961,38276.0,38275.0,0.31137613]
[1643785802304,0.23719961,38276.0,38275.0,0.66137613]
[1643785802563,0.23719961,38276.0,38275.0,0.31137613]
[1643785802764,0.235956,38276.0,38275.0,0.31137613]
[1643785803561,0.235956,38276.0,38275.0,0.31109813]
[1643785807003,0.235956,38276.0,38273.0,0.22409875]
[1643785807606,0.23719961,38276.0,38269.0,0.00099029]
[1643785807804,0.06533,38273.0,38269.0,0.00099029]
[1643785808004,0.195989,38273.0,38271.0,0.60881579]
[1643785808203,0.245989,38273.0,38272.0,0.22744833]
[1643785809008,0.245989,38273.0,38271.0,0.78986206]
[1643785810253,0.195989,38273.0,38271.0,1.01655078]
[1643785810653,0.195989,38273.0,38272.0,0.22944668]
[1643785810853,0.245989,38273.0,38272.0,0.22944668]
[1643785812555,0.245989,38273.0,38272.0,0.58125868]
[1643785812753,0.245989,38273.0,38272.0,0.351812]
[1643785812754,0.195989,38273.0,38272.0,0.351812]
[1643785812953,0.195989,38273.0,38272.0,0.51671014]
[1643785813153,0.195989,38273.0,38272.0,0.16489814]
[1643785813354,0.195989,38273.0,38271.0,0.78986206]
[1643785814032,0.195989,38273.0,38271.0,0.40529036]
[1643785814235,0.245989,38273.0,38271.0,0.40529036]
[1643785816136,0.195989,38273.0,38271.0,0.40529036]
[1643785816436,0.195989,38273.0,38272.0,0.351812]
[1643785816640,0.195989,38273.0,38272.0,0.58733705]
[1643785821907,0.195989,38273.0,38272.0,0.351812]
[1643785823307,0.06533,38273.0,38272.0,0.351812]
[1643785826152,0.06533,38273.0,38272.0,0.57099755]
[1643785826755,0.06533,38273.0,38272.0,0.351812]
[1643785827259,0.06533,38273.0,38272.0,0.56614863]
[1643785827555,0.00124364,38274.0,38273.0,0.665315]
[1643785827754,0.0009472,38274.0,38273.0,1.31829621]
[1643785827957,0.065324,38275.0,38273.0,1.31829621]
[1643785828155,0.065324,38275.0,38274.0,0.57760303]
[1643785828456,0.065324,38275.0,38274.0,0.62980303]
[1643785828912,0.065324,38275.0,38274.0,0.404012]
[1643785830013,0.065324,38275.0,38274.0,0.63535442]
[1643785830413,0.065324,38275.0,38274.0,0.404012]
[1643785833853,0.195954,38276.0,38271.0,0.40529036]
[1643785834053,0.245954,38276.0,38271.0,0.40529036]
[1643785834854,0.195954,38276.0,38271.0,0.40529036]
[1643785835058,0.75996224,38276.0,38268.0,11.79137801]
[1643785835255,0.13065,38275.0,38268.0,11.79137801]
[1643785835455,0.065332,38272.0,38270.0,0.00049632]
[1643785836326,0.21459869,38271.0,38268.0,11.79137801]
[1643785836527,0.41062069,38271.0,38268.0,11.79137801]
[1643785836724,0.41062069,38271.0,38269.0,0.00099177]
[1643785836925,0.26278531,38270.0,38269.0,0.00099177]
[1643785837524,0.52695299,38270.0,38269.0,0.00099177]
[1643785837729,0.52695299,38270.0,38268.0,11.79227055]
[1643785838124,0.31416768,38270.0,38268.0,11.79227055]
[1643785838726,0.31416768,38270.0,38268.0,11.79137801]
[1643785839125,0.05,38270.0,38268.0,11.87651351]
[1643785840459,0.05,38270.0,38268.0,11.79137801]
[1643785840657,0.21723969,38269.0,38268.0,11.79137801]
[1643785840858,0.05,38270.0,38268.0,11.79137801]
[1643785841057,0.22948885,38269.0,38268.0,11.79137801]
[1643785842459,0.29483285,38269.0,38268.0,11.79137801]
[1643785842658,0.05,38270.0,38268.0,11.79137801]
[1643785843910,0.30401693,38270.0,38268.0,11.79144364]
[1643785844311,0.05,38270.0,38268.0,11.79144364]
[1643785844514,0.196022,38271.0,38268.0,11.79144364]
[1643785844910,0.05,38270.0,38268.0,11.79225748]
[1643785845311,0.05,38270.0,38269.0,0.34047034]
[1643785846512,0.196022,38271.0,38269.0,0.34047034]
[1643785846713,0.05,38270.0,38269.0,0.34047034]
[1643785848558,0.196022,38271.0,38269.0,0.5677484]
[1643785848762,0.130681,38271.0,38270.0,0.62488533]
[1643785848958,0.130681,38271.0,38270.0,0.404012]
[1643785849158,0.06533,38272.0,38270.0,0.404012]
[1643785849759,0.06533,38272.0,38270.0,0.4693293]
[1643785850661,0.05,38274.0,38271.0,0.43849766]
[1643785850860,0.130633,38275.0,38272.0,0.60177814]
[1643785851514,0.130633,38275.0,38272.0,0.58699483]
[1643785852206,0.130633,38275.0,38272.0,0.57745877]
[1643785852407,0.130633,38275.0,38273.0,0.31891333]
[1643785852609,0.130633,38275.0,38274.0,0.351812]
[1643785852806,0.130633,38275.0,38273.0,0.065316]
[1643785853507,0.13178547,38276.0,38274.0,0.22875822]
[1643785853906,0.13178547,38276.0,38274.0,0.22882406]
[1643785854307,0.130632,38276.0,38274.0,0.22882406]
[1643785855161,0.130632,38276.0,38274.0,0.47003625]
[1643785855765,0.130632,38276.0,38275.0,0.22786944]
[1643785855961,0.130632,38276.0,38274.0,6.584e-05]
[1643785856165,0.130632,38276.0,38275.0,0.33466362]
[1643785858367,0.065316,38276.0,38275.0,0.33466362]
[1643785858567,0.065316,38276.0,38275.0,0.57077935]
[1643785858805,0.065316,38276.0,38275.0,0.33473549]
[1643785861507,0.195956,38277.0,38275.0,0.33473549]
[1643785861708,0.19710935,38277.0,38275.0,0.33473549]
[1643785862308,0.19710935,38277.0,38276.0,0.25]
[1643785862558,0.06646935,38277.0,38276.0,0.25]
[1643785862857,0.065316,38277.0,38276.0,0.25]
[1643785863659,0.065316,38277.0,38275.0,0.33473549]
[1643785863857,0.065316,38277.0,38275.0,0.33466362]
[1643785864257,0.130634,38277.0,38271.0,0.22540143]
[1643785864459,0.065317,38276.0,38271.0,0.22540143]
[1643785864657,0.065317,38276.0,38271.0,0.35678842]
[1643785865259,0.065317,38276.0,38272.0,0.62485259]
[1643785865459,0.06647035,38276.0,38272.0,0.62485259]
[1643785865659,0.06647035,38276.0,38273.0,0.351812]
[1643785866210,0.13178835,38276.0,38272.0,0.4196752]
[1643785866409,0.130635,38276.0,38272.0,0.4196752]
[1643785866609,0.13178836,38276.0,38272.0,0.4196752]
[1643785867010,0.13178836,38276.0,38273.0,0.351812]
[1643785867612,0.130635,38276.0,38273.0,0.351812]
[1643785867813,0.13178836,38276.0,38273.0,0.351812]
[1643785868214,0.13178836,38276.0,38272.0,0.4196752]
[1643785868613,0.13178836,38276.0,38273.0,0.351812]
[1643785868817,0.130635,38276.0,38273.0,0.351812]
[1643785869014,0.13178836,38276.0,38273.0,0.351812]
[1643785869615,0.13178836,38276.0,38272.0,0.3543592]
[1643785870055,0.130635,38276.0,38272.0,0.3543592]
[1643785870255,0.130643,38275.0,38272.0,0.3543592]
[1643785870457,0.065317,38274.0,38273.0,0.12799519]
[1643785870654,0.065317,38274.0,38273.0,0.351812]
[1643785871855,0.06523866,38274.0,38273.0,0.351812]
[1643785875619,0.06647035,38276.0,38273.0,0.351812]
[1643785876020,0.065317,38276.0,38273.0,0.351812]
[1643785876220,0.06647036,38276.0,38273.0,0.351812]
[1643785877221,0.06647036,38276.0,38273.0,0.48309552]
[1643785877222,0.065317,38276.0,38273.0,0.48309552]
[1643785877462,0.06647036,38276.0,38274.0,0.417128]
[1643785877857,0.06647036,38276.0,38274.0,0.351812]
[1643785878257,0.06647036,38276.0,38275.0,0.72974305]
[1643785878458,0.065313,38277.0,38275.0,1.08155505]
[1643785878657,0.06646635,38277.0,38276.0,0.351812]
[1643785879261,0.06646635,38277.0,38276.0,0.651812]
[1643785879659,0.065313,38277.0,38276.0,0.651812]
[1643785881506,0.065313,38277.0,38276.0,0.351812]
[1643785884971,0.00115334,38278.0,38276.0,0.351812]
[1643785885465,0.00115334,38278.0,38277.0,0.07811458]
[1643785885662,0.13063,38279.0,38277.0,0.07811458]
[1643785885862,0.13178333,38279.0,38275.0,0.117512]
[1643785886264,0.13178333,38279.0,38275.0,0.065312]
[1643785886763,0.05,38278.0,38275.0,0.065312]
[1643785886964,0.065316,38277.0,38275.0,0.065312]
[1643785887165,0.065316,38277.0,38276.0,0.08542875]
[1643785887364,0.065316,38277.0,38276.0,0.43724075]
[1643785889718,0.06500154,38277.0,38276.0,0.43724075]
[1643785890916,0.00115334,38278.0,38276.0,0.43724075]
[1643785891117,0.00115334,38278.0,38277.0,0.515311]
[1643785891318,0.00115334,38278.0,38277.0,0.867123]
[1643785891617,0.065311,38280.0,38277.0,0.93243353]
[1643785891818,0.00115333,38279.0,38278.0,0.65447987]
[1643785892020,0.00115333,38279.0,38278.0,1.25376041]
[1643785892220,0.00115333,38279.0,38278.0,0.71631804]
[1643785892857,0.0205212,38282.0,38278.0,0.71631804]
[1643785893059,0.398621,38284.0,38278.0,0.71631804]
[1643785893060,0.00115332,38280.0,38278.0,0.71631804]
[1643785894057,0.130621,38281.0,38278.0,0.71631804]
[1643785894259,0.13177431,38281.0,38278.0,0.71631804]
[1643785895257,0.130621,38281.0,38278.0,0.66411804]
[1643785895457,0.1317743,38281.0,38278.0,0.89661733]
[1643785895657,0.1317743,38281.0,38278.0,0.66411804]
[1643785896411,0.130621,38281.0,38278.0,0.66411804]
[1643785896611,0.0664623,38281.0,38279.0,0.13061555]
[1643785896811,0.0664623,38281.0,38280.0,0.351812]
[1643785897311,0.0664623,38281.0,38279.0,0.06530855]
[1643785897514,0.065309,38281.0,38279.0,0.06530855]
[1643785897911,0.065309,38281.0,38278.0,0.31230604]
[1643785898312,0.065309,38281.0,38279.0,0.351812]
[1643785899311,0.065309,38281.0,38279.0,0.06530793]
[1643785900561,0.065309,38281.0,38280.0,0.351812]
[1643785900762,0.065309,38281.0,38279.0,0.06530793]
[1643785901163,0.065309,38281.0,38280.0,0.351812]
[1643785901362,0.06500313,38281.0,38280.0,0.351812]
[1643785901866,0.71243696,38286.0,38280.0,0.351812]
[1643785901867,0.001,38291.0,38281.0,0.6]
[1643785902065,0.001,38291.0,38282.0,0.64438224]
[1643785902264,0.001,38291.0,38283.0,0.7]
[1643785902465,0.001,38291.0,38285.0,0.27644187]
[1643785902668,0.001,38291.0,38286.0,0.64438224]
[1643785902865,0.130573,38299.0,38288.0,0.6]
[1643785903065,0.21713016,38306.0,38294.0,0.0652765]
[1643785903066,0.21694403,38306.0,38294.0,0.0652765]
[1643785903267,0.00018613,38308.0,38295.0,0.404012]
[1643785903268,0.001,38304.0,38295.0,0.404012]
[1643785903715,0.001,38304.0,38296.0,0.1]
[1643785903916,0.001,38304.0,38303.0,0.33378707]
[1643785904122,0.001,38304.0,38303.0,0.38598707]
[1643785905120,0.001,38304.0,38303.0,0.62001228]
[1643785905323,0.001,38304.0,38303.0,0.38598707]
[1643785905620,0.001,38304.0,38303.0,0.65906662]
[1643785906024,0.001,38304.0,38303.0,0.0522]
[1643785906423,0.10139638,38297.0,38294.0,0.0522]
[1643785906623,0.10139638,38297.0,38295.0,0.404012]
[1643785906822,0.10139638,38297.0,38296.0,0.0522]
[1643785907223,0.130572,38299.0,38296.0,0.404012]
[1643785907465,0.0012457,38298.0,38296.0,0.404012]
[1643785908059,0.0665317,38298.0,38296.0,0.404012]
[1643785908560,0.065286,38298.0,38296.0,0.404012]
[1643785909562,0.08789673,38297.0,38296.0,0.0522]
[1643785909862,0.06641881,38299.0,38296.0,0.64012346]
[1643785910064,0.00113381,38299.0,38296.0,0.404012]
[1643785910762,0.28614016,38302.0,38296.0,0.404012]
[1643785910966,0.0815279,38298.0,38296.0,0.11748102]
[1643785911210,0.0815279,38298.0,38297.0,0.351812]
[1643785911409,0.0815279,38298.0,38294.0,0.13056026]
[1643785911610,0.0011338,38299.0,38295.0,0.351812]
[1643785912009,0.28614016,38302.0,38295.0,0.351812]
[1643785912210,0.00113381,38299.0,38294.0,0.13056026]
[1643785912410,0.00113381,38299.0,38295.0,0.351812]
[1643785912612,0.20757976,38298.0,38295.0,0.351812]
[1643785913411,0.20873875,38298.0,38295.0,0.417094]
[1643785913610,0.00115899,38298.0,38295.0,0.417094]
[1643785913811,0.065287,38299.0,38295.0,0.417094]
[1643785913812,0.05644599,38299.0,38296.0,0.6]
[1643785914011,0.130566,38303.0,38297.0,0.351812]
[1643785914212,0.0194722,38302.0,38298.0,0.2322758]
[1643785914412,0.001,38304.0,38299.0,0.351812]
[1643785914611,0.26237913,38302.0,38298.0,0.065279]
[1643785915068,0.26237913,38302.0,38298.0,0.13054227]
[1643785915069,0.05,38301.0,38298.0,0.13054227]
[1643785915471,0.065278,38300.0,38298.0,0.13054227]
[1643785915975,0.065278,38300.0,38296.0,0.22560842]
[1643785916169,0.065278,38300.0,38293.0,0.35295657]
[1643785916369,0.23033701,38298.0,38294.0,0.351812]
[1643785916571,0.29562101,38298.0,38294.0,0.351812]
[1643785917569,0.130564,38302.0,38297.0,0.28647857]
[1643785917774,0.01948387,38304.0,38298.0,0.64283164]
[1643785917971,0.01948387,38304.0,38298.0,0.404012]
[1643785918171,0.02262938,38301.0,38298.0,0.404012]
[1643785918574,0.02262938,38301.0,38299.0,0.24055269]
[1643785918812,0.02262938,38301.0,38300.0,0.954012]
[1643785919011,0.02262938,38301.0,38300.0,0.404012]
[1643785919211,0.001,38304.0,38300.0,0.48816044]
[1643785919413,0.001,38304.0,38303.0,0.73950611]
[1643785919614,0.001,38304.0,38303.0,0.93667044]
[1643785919813,0.001,38304.0,38303.0,0.69351811]
[1643785920212,0.001,38304.0,38303.0,0.91572468]
[1643785920912,0.001,38304.0,38303.0,0.96572468]
[1643785921118,0.001,38304.0,38303.0,0.91572468]
[1643785925673,0.01,38309.0,38305.0,0.06526335]
[1643785925871,0.01,38309.0,38306.0,0.469269]
[1643785926314,0.00968556,38309.0,38306.0,0.454012]
[1643785926713,0.00968556,38309.0,38307.0,0.49948598]
[1643785927013,0.00968556,38309.0,38308.0,1.06925693]
[1643785927215,0.00968556,38309.0,38308.0,1.24975293]
[1643785929314,0.427149,38318.0,38315.0,0.30256549]
[1643785929713,0.065249,38318.0,38315.0,0.30256549]
[1643785929968,0.065249,38318.0,38313.0,0.11744811]
[1643785930166,0.2426114,38315.0,38313.0,0.0522]
[1643785930367,0.33612574,38315.0,38313.0,0.0522]
[1643785933067,0.00120235,38316.0,38313.0,0.0522]
[1643785933715,0.00120234,38316.0,38314.0,7.078e-05]
[1643785933916,0.00120234,38316.0,38315.0,0.96705555]
[1643785934118,0.00120234,38316.0,38315.0,0.6737135]
[1643785934316,0.00120234,38316.0,38315.0,0.90740766]
[1643785934815,0.01854836,38318.0,38315.0,1.01217841]
[1643785935016,0.00114557,38317.0,38316.0,0.065246]
[1643785935218,0.00114557,38317.0,38316.0,0.417058]
[1643785935616,0.00114557,38317.0,38316.0,0.65799401]
[1643785936020,0.01,38319.0,38316.0,0.93342346]
[1643785936217,0.00114556,38318.0,38316.0,0.71019401]
[1643785936620,0.00114556,38318.0,38316.0,0.95485416]
[1643785937217,0.01,38319.0,38316.0,0.95485416]
[1643785937472,0.01114555,38319.0,38316.0,0.71019401]
[1643785937667,0.01114555,38319.0,38316.0,1.005942]
[1643785938468,0.01,38319.0,38316.0,0.77543601]
[1643785938667,0.01115832,38319.0,38316.0,0.77543601]
[1643785938868,0.01115832,38319.0,38318.0,0.60006503]
[1643785939068,0.01115832,38319.0,38318.0,1.00407703]
[1643785939668,0.01,38319.0,38318.0,1.00407703]
[1643785940170,0.01,38319.0,38318.0,0.40407703]
[1643785940369,0.01,38319.0,38318.0,0.05226503]
[1643785940370,0.005,38319.0,38318.0,0.05226503]
[1643785944227,0.005,38319.0,38318.0,6.503e-05]
[1643785948913,0.005,38319.0,38314.0,0.06531694]
[1643785949114,0.065246,38318.0,38314.0,0.06531694]
[1643785949316,0.115246,38318.0,38314.0,0.13056096]
[1643785949617,0.11640196,38318.0,38314.0,0.13056096]
[1643785950417,0.115246,38318.0,38314.0,0.13056096]
[1643785950616,0.11640196,38318.0,38314.0,0.13056096]
[1643785951616,0.115246,38318.0,38314.0,0.13056096]
[1643785951817,0.11640196,38318.0,38314.0,0.13056096]
[1643785952865,0.115246,38318.0,38314.0,0.13056096]
[1643785953065,0.246899,38318.0,38314.0,0.06531694]
[1643785953965,0.245743,38318.0,38316.0,7.086e-05]
[1643785954167,0.246899,38318.0,38316.0,7.086e-05]
[1643785954666,0.116402,38318.0,38316.0,7.086e-05]
[1643785955268,0.115246,38318.0,38316.0,7.086e-05]
[1643785955568,0.065246,38318.0,38316.0,7.086e-05]
[1643785958919,0.065246,38318.0,38314.0,0.0653169]
[1643785959118,0.065246,38318.0,38315.0,0.52636974]
[1643785959964,0.065246,38318.0,38315.0,0.351812]
[1643785960167,0.06640198,38318.0,38315.0,0.351812]
[1643785961165,0.065246,38318.0,38315.0,0.351812]
[1643785961365,0.06640198,38318.0,38315.0,0.351812]
[1643785962366,0.065246,38318.0,38315.0,0.351812]
[1643785962668,0.065246,38318.0,38314.0,0.0653169]
[1643785962669,0.06640198,38318.0,38314.0,0.0653169]
[1643785962866,0.19689798,38318.0,38314.0,0.0653169]
[1643785963718,0.195742,38318.0,38314.0,0.0653169]
[1643785964020,0.19689799,38318.0,38317.0,0.2000709]
[1643785964320,0.19689799,38318.0,38317.0,7.09e-05]
[1643785964718,0.195742,38318.0,38317.0,7.09e-05]
[1643785965920,0.195742,38318.0,38317.0,0.35454642]
[1643785966821,0.065246,38318.0,38317.0,0.35454642]
[1643785967669,0.065246,38318.0,38317.0,0.85454642]
[1643785967670,0.064446,38318.0,38317.0,0.85454642]
[1643785968471,0.064446,38318.0,38317.0,0.5000709]
[1643785971628,0.064446,38318.0,38317.0,0.8518829]
[1643785975274,0.064446,38318.0,38317.0,1.07329149]
[1643785975472,0.064446,38318.0,38317.0,0.8518829]
[1643785975774,0.064446,38318.0,38317.0,1.07611253]
[1643785976171,0.064446,38318.0,38317.0,0.8518829]
[1643785976373,0.064446,38318.0,38317.0,1.07373105]
[1643785976674,0.25727958,38325.0,38317.0,1.07373105]
[1643785976675,0.0046232,38325.0,38319.0,0.065233]
[1643785976873,0.317643,38327.0,38320.0,0.404012]
[1643785977072,0.06523,38326.0,38320.0,0.404012]
[1643785977274,0.06523,38326.0,38321.0,0.1]
[1643785977472,0.06523,38326.0,38322.0,1.02516412]
[1643785978174,0.06638735,38326.0,38322.0,1.02516412]
[1643785978377,0.06638735,38326.0,38323.0,0.07540022]
[1643785978574,0.06638735,38326.0,38324.0,0.904012]
[1643785978820,0.06426228,38326.0,38325.0,0.58358541]
[1643785979022,0.06426228,38326.0,38325.0,0.98759741]
[1643785979220,0.12833593,38326.0,38325.0,0.98759741]
[1643785979622,0.12833593,38326.0,38325.0,1.13759741]
[1643785980522,0.12833593,38326.0,38325.0,0.904012]
[1643785981324,0.12833593,38326.0,38325.0,1.13826542]
[1643785983363,0.06310493,38326.0,38325.0,0.904012]
[1643785983570,0.012,38329.0,38327.0,0.065219]
[1643785983763,0.012,38329.0,38328.0,1.004012]
[1643785984164,0.012,38329.0,38328.0,1.604012]
[1643785984365,0.012,38329.0,38328.0,1.87108232]
[1643785984566,0.012,38329.0,38328.0,2.49088219]
[1643785985768,0.012,38329.0,38328.0,2.54088219]
[1643785985968,0.012,38329.0,38328.0,2.49088219]
[1643785986422,0.002,38336.0,38329.0,0.6]
[1643785986623,0.002,38336.0,38335.0,0.69519136]
[1643785986822,0.067214,38336.0,38335.0,0.74920336]
[1643785987620,0.067214,38336.0,38335.0,0.84209977]
[1643785988421,0.117214,38336.0,38335.0,0.84209977]
[1643785988623,0.117214,38336.0,38335.0,0.77688877]
[1643785988826,0.117214,38336.0,38335.0,0.42507677]
[1643785989223,0.117214,38336.0,38335.0,0.14509641]
[1643785989824,0.117214,38336.0,38335.0,0.0522]
[1643785991068,0.20558799,38336.0,38335.0,0.0522]
[1643785991669,0.117214,38336.0,38335.0,0.0522]
[1643785992071,0.36931508,38336.0,38335.0,0.0522]
[1643785992277,0.36931508,38336.0,38330.0,0.63042479]
[1643785992471,0.05,38335.0,38330.0,0.63042479]
[1643785992670,0.130443,38334.0,38330.0,0.13042479]
[1643785993273,0.132448,38336.0,38331.0,0.44357125]
[1643785993274,0.002,38336.0,38331.0,0.44357125]
[1643785993472,0.002,38336.0,38332.0,0.351812]
[1643785993722,0.002,38336.0,38335.0,0.6000649]
[1643785993921,0.002,38336.0,38335.0,1.0040769]
[1643785994322,0.002,38336.0,38335.0,1.43537851]
[1643785994524,0.002,38336.0,38335.0,1.53537851]
[1643785995320,0.002,38336.0,38335.0,0.93537851]
[1643785997123,0.065206,38338.0,38336.0,0.6]
[1643785997325,0.065206,38338.0,38337.0,0.404012]
[1643785997569,0.065206,38338.0,38337.0,0.63012285]
[1643785997968,0.065204,38341.0,38338.0,0.615203]
[1643785997969,0.130407,38341.0,38338.0,0.615203]
[1643785998167,0.130407,38341.0,38338.0,1.25116866]
[1643785998379,0.130407,38341.0,38338.0,1.43857953]
[1643785998668,0.00115757,38340.0,38338.0,0.65662587]
[1643785998867,0.00115757,38340.0,38338.0,0.81182511]
[1643785999068,0.00115757,38340.0,38338.0,0.59142287]
[1643785999672,0.130407,38341.0,38338.0,0.23961087]
[1643785999871,0.00115757,38340.0,38338.0,0.23961087]
[1643786000571,0.00115757,38340.0,38338.0,0.13961087]
[1643786000771,0.130407,38341.0,38338.0,0.13961087]
[1643786000972,0.00115757,38340.0,38338.0,0.13961087]
[1643786002118,0.130407,38341.0,38338.0,0.0522]
[1643786002318,0.00115757,38340.0,38338.0,0.0522]
[1643786003319,0.21291252,38341.0,38338.0,0.0522]
[1643786003522,0.00115757,38340.0,38336.0,0.13040755]
[1643786003724,0.12149191,38339.0,38338.0,6.5e-05]
[1643786005368,0.35627201,38339.0,38338.0,6.5e-05]
[1643786005768,0.77627201,38339.0,38338.0,6.5e-05]
[1643786008819,0.77627201,38339.0,38336.0,0.100065]
[1643786009422,0.54264949,38339.0,38336.0,0.100065]
[1643786009624,0.2505063,38338.0,38336.0,0.100065]
[1643786009824,0.6,38336.0,38324.0,0.130445]
[1643786010026,0.1,38325.0,38324.0,0.130445]
[1643786010224,0.1,38325.0,38320.0,0.00083214]
[1643786010227,0.35,38325.0,38320.0,0.00083214]
[1643786010423,0.2869801,38324.0,38305.0,0.35026864]
[1643786010623,0.03940457,38323.0,38320.0,0.00083214]
[1643786010822,0.49766249,38322.0,38320.0,0.00083214]
[1643786011024,0.08417368,38321.0,38320.0,0.00083214]
[1643786011222,0.22826207,38321.0,38320.0,0.00083214]
[1643786011526,0.17826207,38321.0,38320.0,0.00083214]
[1643786011724,0.04782057,38320.0,38315.0,0.08496255]
[1643786011923,0.04782057,38320.0,38319.0,0.00083216]
[1643786012326,0.28320331,38320.0,38319.0,0.00083216]
[1643786012767,0.28320331,38320.0,38305.0,0.02]
[1643786012768,0.33320331,38320.0,38305.0,0.02]
[1643786012971,0.33320331,38320.0,38318.0,0.00083219]
[1643786013166,0.33320331,38320.0,38305.0,0.02]
[1643786013167,0.61119406,38319.0,38305.0,0.02]
[1643786013367,0.2224981,38308.0,38305.0,0.02]
[1643786013566,0.2224981,38308.0,38307.0,0.08915622]
[1643786013766,0.05,38308.0,38307.0,0.08915622]
[1643786014167,0.05,38312.0,38307.0,0.08915622]
[1643786014470,0.065266,38310.0,38307.0,0.08915622]
[1643786015168,0.130532,38309.0,38307.0,0.08915622]
[1643786015369,0.180532,38309.0,38307.0,0.08915622]
[1643786017220,0.05,38309.0,38307.0,0.08915622]
[1643786017818,0.180532,38309.0,38307.0,0.08915622]
[1643786018821,0.180532,38309.0,38308.0,6.151e-05]
[1643786020679,0.180532,38309.0,38308.0,0.35187351]
[1643786021282,0.180532,38309.0,38308.0,6.151e-05]
[1643786022681,0.05,38309.0,38308.0,0.35187351]
[1643786023380,0.065266,38310.0,38308.0,0.35187351]
[1643786023816,0.065266,38310.0,38308.0,0.41712599]
[1643786024217,0.05,38309.0,38308.0,0.41712599]
[1643786025218,0.065266,38310.0,38308.0,0.41712599]
[1643786027020,0.065266,38310.0,38308.0,0.46712599]
[1643786027690,0.065265,38311.0,38308.0,0.46712599]
[1643786027888,0.065265,38311.0,38308.0,0.41712599]
[1643786028288,0.130501,38313.0,38308.0,0.41712599]
[1643786028689,0.130501,38313.0,38312.0,0.37720551]
[1643786028890,0.180501,38313.0,38312.0,0.37720551]
[1643786030193,0.115251,38313.0,38312.0,0.37720551]
[1643786032522,0.065251,38313.0,38312.0,0.37720551]
[1643786032725,0.115251,38313.0,38312.0,0.37720551]
[1643786033625,0.065251,38313.0,38312.0,0.37720551]
[1643786033824,0.115251,38313.0,38312.0,0.37727229]
[1643786034224,0.115251,38313.0,38312.0,0.78128429]
[1643786034625,0.065251,38313.0,38312.0,0.99736838]
[1643786034826,0.115251,38313.0,38312.0,0.99736838]
[1643786035569,0.065251,38313.0,38312.0,0.78128429]
[1643786035769,0.130489,38318.0,38312.0,1.1810746]
[1643786035970,0.00125012,38324.0,38313.0,0.42367261]
[1643786035971,0.93,38323.0,38313.0,0.42367261]